bitfinex/quotes_BTCUSD_20240717
["timestamp","ask_amount","ask_price","bid_price","bid_amount"]
[1721228004487,3.04710015,65146.0,65145.0,0.00914129]
[1721228004739,3.24504008,65146.0,65145.0,0.00914129]
[1721228004959,3.29894858,65146.0,65145.0,0.00914129]
[1721228005371,3.60595058,65146.0,65145.0,2.9e-07]
[1721228005869,3.34253894,65146.0,65145.0,2.9e-07]
[1721228006097,3.35653894,65146.0,65145.0,2.9e-07]
[1721228006415,1.900343,65141.0,65140.0,0.009196]
[1721228006707,2.68238172,65141.0,65140.0,0.009196]
[1721228007315,2.77696238,65141.0,65140.0,0.009196]
[1721228007734,2.77257042,65141.0,65140.0,0.009196]
[1721228007949,2.78657042,65141.0,65140.0,0.010196]
[1721228008177,2.60717184,65141.0,65140.0,0.010196]
[1721228008381,2.78661159,65141.0,65140.0,0.010196]
[1721228009489,2.75067943,65141.0,65140.0,0.010196]
[1721228009895,2.80067943,65141.0,65140.0,0.010196]
[1721228010305,2.83137943,65141.0,65140.0,0.010196]
[1721228010950,2.95717273,65141.0,65140.0,0.010196]
[1721228011159,2.95717273,65141.0,65117.0,0.0027273]
[1721228011160,1.074969,65118.0,65117.0,0.0027273]
[1721228011385,1.074969,65118.0,65115.0,0.0146517]
[1721228011386,0.767847,65117.0,65115.0,0.0146517]
[1721228011617,0.767847,65117.0,65093.0,0.010196]
[1721228011618,0.05,65115.0,65093.0,0.010196]
[1721228011854,0.960885,65092.0,65091.0,0.009196]
[1721228012063,1.1974943,65092.0,65091.0,0.009196]
[1721228012317,1.92440492,65092.0,65091.0,0.009196]
[1721228012586,1.98043783,65092.0,65091.0,0.009196]
[1721228012824,2.31216914,65092.0,65091.0,0.009196]
[1721228013074,2.6528317,65092.0,65091.0,0.009196]
[1721228013360,1.432679,65091.0,65090.0,1e-06]
[1721228013613,3.2564934,65091.0,65090.0,1e-06]
[1721228013861,3.2564934,65091.0,65079.0,0.009185]
[1721228013862,1.901927,65080.0,65079.0,0.009185]
[1721228014121,1.901927,65080.0,65074.0,0.009185]
[1721228014122,1.237379,65075.0,65074.0,0.009185]
[1721228014410,1.237379,65075.0,65067.0,0.0001]
[1721228014411,0.768425,65068.0,65067.0,0.0001]
[1721228014686,1.84288217,65068.0,65067.0,0.0001]
[1721228014948,2.0829246,65068.0,65067.0,0.0001]
[1721228015477,2.4132946,65068.0,65067.0,0.0001]
[1721228015733,2.67273473,65068.0,65067.0,0.0001]
[1721228016393,2.21101516,65068.0,65067.0,0.0001]
[1721228016628,2.05485654,65068.0,65067.0,0.0001]
[1721228016882,2.27580588,65068.0,65067.0,0.0001]
[1721228017128,2.1255332,65068.0,65067.0,0.0001]
[1721228017361,2.40696052,65068.0,65067.0,0.0001]
[1721228017615,2.29832731,65068.0,65067.0,0.0001]
[1721228017884,2.91125672,65068.0,65067.0,0.0001]
[1721228018164,2.56788672,65068.0,65067.0,0.0001]
[1721228018639,2.4209627,65068.0,65067.0,0.0001]
[1721228018870,2.25183715,65068.0,65067.0,0.0001]
[1721228019336,1.80544159,65068.0,65067.0,0.0001]
[1721228019616,1.557772,65068.0,65067.0,0.0001]
[1721228019863,1.865142,65068.0,65067.0,0.0001]
[1721228020112,2.3968352,65068.0,65067.0,0.0001]
[1721228020366,2.4066214,65068.0,65067.0,0.0001]
[1721228020670,2.3926214,65068.0,65067.0,0.0001]
[1721228021136,2.4016214,65068.0,65067.0,0.0001]
[1721228021647,2.62890177,65068.0,65067.0,0.0001]
[1721228021879,2.86494554,65068.0,65067.0,0.0001]
[1721228022361,2.86494554,65068.0,65046.0,0.0027273]
[1721228022362,1.140978,65051.0,65046.0,0.0027273]
[1721228022609,2.59848676,65051.0,65031.0,0.0027273]
[1721228022855,2.59848676,65051.0,65028.0,0.0027273]
[1721228022856,2.45703286,65051.0,65028.0,0.0027273]
[1721228023062,2.73748386,65051.0,65028.0,0.0027273]
[1721228023258,2.48003286,65051.0,65028.0,0.0027273]
[1721228023535,2.60629863,65051.0,65028.0,0.0027273]
[1721228023750,2.60629863,65051.0,65026.0,0.082]
[1721228023751,2.79829157,65051.0,65050.0,7e-07]
[1721228023961,2.90591432,65051.0,65050.0,7e-07]
[1721228024196,2.90591432,65051.0,65027.0,0.0027273]
[1721228024197,1.076456,65028.0,65027.0,0.0027273]
[1721228024407,0.461361,65025.0,65024.0,0.009185]
[1721228024610,1.68749091,65025.0,65024.0,0.009185]
[1721228025084,1.81049091,65025.0,65024.0,0.009185]
[1721228025301,1.78749091,65025.0,65024.0,0.009185]
[1721228025577,0.55719491,65025.0,65024.0,0.009185]
[1721228025803,0.33571628,65025.0,65024.0,0.009185]
[1721228026001,0.561361,65025.0,65024.0,0.009185]
[1721228026200,0.3230783,65025.0,65024.0,0.009185]
[1721228026483,0.29997918,65025.0,65024.0,0.009185]
[1721228026699,0.009,65028.0,65024.0,0.27775501]
[1721228026907,0.009,65028.0,65025.0,0.045882]
[1721228027153,0.04618788,65033.0,65026.0,0.12724701]
[1721228027367,0.13856366,65045.0,65033.0,0.1402]
[1721228027368,0.04618788,65042.0,65033.0,0.1402]
[1721228027573,0.46304871,65044.0,65035.0,0.153761]
[1721228027835,0.04618788,65046.0,65036.0,0.12724701]
[1721228027836,0.15374,65045.0,65036.0,0.12724701]
[1721228028066,0.04617745,65044.0,65037.0,0.12748363]
[1721228028303,0.04617745,65044.0,65038.0,0.12748363]
[1721228028591,0.04617745,65044.0,65039.0,0.12748363]
[1721228028820,0.307462,65049.0,65040.0,0.12748363]
[1721228028821,0.04617745,65045.0,65040.0,0.12748363]
[1721228029058,0.04617745,65045.0,65033.0,0.18611635]
[1721228029059,0.153765,65034.0,65033.0,0.1402]
[1721228029541,0.19995015,65034.0,65033.0,0.1402]
[1721228029787,0.81501215,65034.0,65033.0,0.1402]
[1721228030022,0.19995015,65034.0,65033.0,0.1402]
[1721228030248,0.04618515,65035.0,65033.0,0.1402]
[1721228030465,0.001,65034.0,65033.0,0.1402]
[1721228030669,0.001,65034.0,65033.0,0.72812897]
[1721228031127,0.001,65034.0,65033.0,0.72813039]
[1721228031330,0.001,65034.0,65033.0,0.90904]
[1721228031546,0.001,65034.0,65033.0,1.216576]
[1721228031757,0.001,65034.0,65033.0,1.0306976]
[1721228031961,0.001,65034.0,65033.0,0.4156256]
[1721228032160,0.001,65034.0,65033.0,0.7231616]
[1721228032579,0.001,65034.0,65033.0,0.2618576]
[1721228032992,0.001,65034.0,65033.0,0.601504]
[1721228033193,0.001,65034.0,65033.0,0.1402]
[1721228033402,0.001,65034.0,65033.0,0.601504]
[1721228034223,0.001,65034.0,65033.0,0.293968]
[1721228034429,0.001,65034.0,65033.0,0.601504]
[1721228034633,0.001,65034.0,65033.0,0.692409]
[1721228035524,0.001,65034.0,65033.0,0.999945]
[1721228035726,0.001,65034.0,65033.0,0.99895221]
[1721228036176,0.153728,65050.0,65033.0,0.99895221]
[1721228036177,0.04604582,65050.0,65041.0,0.307496]
[1721228036386,0.04604582,65051.0,65047.0,0.307467]
[1721228036586,0.04604582,65055.0,65048.0,0.1844787]
[1721228036795,0.04604582,65056.0,65048.0,0.1844787]
[1721228037007,0.04604582,65056.0,65055.0,0.153716]
[1721228037206,0.04604582,65056.0,65048.0,0.0307467]
[1721228037207,0.19974882,65061.0,65052.0,0.153722]
[1721228037413,0.153703,65061.0,65052.0,0.153722]
[1721228037618,0.153697,65063.0,65054.0,0.153717]
[1721228037820,0.30807874,65063.0,65054.0,0.153717]
[1721228038474,0.35342882,65066.0,65054.0,0.153717]
[1721228038475,0.04604582,65066.0,65054.0,0.066]
[1721228038684,0.307286,65086.0,65054.0,0.066]
[1721228038685,0.35338182,65076.0,65062.0,0.307395]
[1721228038934,0.307343,65074.0,65062.0,0.307395]
[1721228039132,0.04604582,65077.0,65062.0,0.307395]
[1721228039133,0.04604582,65077.0,65069.0,0.1423]
[1721228039335,0.04604582,65090.0,65070.0,0.0058002]
[1721228039535,0.04604582,65090.0,65070.0,0.0027273]
[1721228039536,0.46304871,65088.0,65070.0,0.0027273]
[1721228039740,0.07717479,65090.0,65070.0,0.0027273]
[1721228039865,0.07717479,65083.0,65070.0,0.0027273]
[1721228040094,0.30731,65081.0,65071.0,0.0244255]
[1721228040313,0.07717479,65083.0,65072.0,0.0027273]
[1721228040314,0.15438174,65080.0,65072.0,0.0027273]
[1721228040476,0.307338,65075.0,65069.0,0.1423]
[1721228040675,0.307308,65082.0,65069.0,0.1423]
[1721228040887,0.014,65088.0,65070.0,0.00680056]
[1721228041284,0.014,65083.0,65072.0,0.307349]
[1721228041408,0.014,65083.0,65073.0,0.0027273]
[1721228041608,0.014,65083.0,65072.0,0.1574023]
[1721228041809,0.114,65083.0,65075.0,0.307336]
[1721228042018,0.014,65083.0,65076.0,0.153664]
[1721228042212,0.014,65083.0,65077.0,0.0462]
[1721228042416,0.011,65080.0,65077.0,0.0462]
[1721228042682,0.00084,65079.0,65074.0,0.1563973]
[1721228042866,0.00084,65079.0,65076.0,0.153664]
[1721228043218,0.00084,65079.0,65074.0,0.1563953]
[1721228043398,0.00084,65079.0,65077.0,0.153663]
[1721228043595,0.00084,65079.0,65077.0,0.153662]
[1721228043836,0.23155653,65078.0,65071.0,0.04302006]
[1721228044038,0.00084,65079.0,65072.0,0.0027273]
[1721228044191,0.00084,65079.0,65076.0,0.001]
[1721228044799,0.00084,65079.0,65074.0,0.0027273]
[1721228045242,0.00084,65079.0,65070.0,0.0027273]
[1721228045384,0.153665,65077.0,65071.0,0.01450273]
[1721228045575,0.00084,65079.0,65072.0,0.0027273]
[1721228045576,0.153662,65078.0,65072.0,0.0027273]
[1721228045779,0.00084,65079.0,65072.0,0.0027273]
[1721228045988,0.00084,65079.0,65078.0,0.460984]
[1721228046192,0.00084,65079.0,65078.0,1.049407]
[1721228046470,0.00084,65079.0,65078.0,1.1543477]
[1721228046693,0.00084,65079.0,65078.0,0.8732477]
[1721228046870,0.00084,65079.0,65078.0,1.6557707]
[1721228047262,0.00984,65079.0,65078.0,1.6067707]
[1721228047426,0.01584,65079.0,65078.0,1.6067707]
[1721228047675,0.307212,65102.0,65082.0,0.05]
[1721228047875,0.46159774,65101.0,65090.0,0.153632]
[1721228047986,0.15361,65100.0,65091.0,0.153631]
[1721228048191,0.15438174,65100.0,65092.0,0.15669931]
[1721228048430,0.15438174,65100.0,65093.0,0.153625]
[1721228048895,0.315541,65111.0,65090.0,0.307262]
[1721228048896,0.307177,65109.0,65090.0,0.307266]
[1721228049136,0.153602,65103.0,65095.0,0.15362]
[1721228049272,0.153598,65105.0,65093.0,0.307251]
[1721228049474,0.153598,65105.0,65097.0,0.153616]
[1721228049680,0.1536,65104.0,65095.0,0.15362]
[1721228049875,0.1536,65104.0,65092.0,0.153626]
[1721228049876,0.153605,65102.0,65092.0,0.153626]
[1721228050073,0.07717479,65107.0,65091.0,0.3519736]
[1721228050074,0.15438174,65101.0,65091.0,0.0447166]
[1721228050295,0.153605,65102.0,65093.0,0.153624]
[1721228050510,0.153605,65102.0,65094.0,0.153622]
[1721228050706,0.30718,65109.0,65096.0,0.307235]
[1721228050969,0.01,65100.0,65099.0,0.307224]
[1721228051174,0.01,65100.0,65099.0,0.4918656]
[1721228051591,0.00837,65111.0,65101.0,0.153606]
[1721228051792,0.153587,65110.0,65101.0,0.153606]
[1721228051965,0.00837,65111.0,65104.0,0.153598]
[1721228052118,0.00837,65111.0,65099.0,0.0310296]
[1721228052324,0.00837,65111.0,65105.0,0.153596]
[1721228052910,0.00837,65111.0,65106.0,0.153595]
[1721228053130,0.00837,65111.0,65096.0,0.307235]
[1721228053326,0.07717479,65106.0,65090.0,0.307262]
[1721228053593,0.153605,65102.0,65094.0,0.19102086]
[1721228053722,0.153603,65103.0,65094.0,0.18902086]
[1721228053961,0.153605,65102.0,65094.0,0.18902086]
[1721228054177,0.769047,65100.0,65099.0,0.012]
[1721228054387,0.001,65100.0,65099.0,0.012]
[1721228054581,0.46158074,65105.0,65091.0,0.30726]
[1721228054582,0.153605,65102.0,65094.0,0.153623]
[1721228054876,0.153608,65101.0,65095.0,0.0768137]
[1721228055620,0.153605,65102.0,65095.0,0.0768137]
[1721228056147,0.153616,65098.0,65094.0,0.003]
[1721228056555,0.155606,65102.0,65094.0,0.003]
[1721228056729,0.155606,65102.0,65094.0,0.002]
[1721228056865,0.07717479,65098.0,65094.0,0.002]
[1721228057073,0.153621,65095.0,65094.0,0.002]
[1721228057271,0.92248874,65095.0,65094.0,0.002]
[1721228057934,0.25438174,65095.0,65078.0,0.0792]
[1721228058103,0.153637,65089.0,65081.0,0.153652]
[1721228058362,0.153637,65089.0,65082.0,0.05428923]
[1721228058537,0.153633,65090.0,65082.0,0.20794023]
[1721228058890,0.109,65095.0,65094.0,0.001]
[1721228059094,1.03148874,65095.0,65094.0,0.001]
[1721228059315,1.33873174,65095.0,65094.0,0.001]
[1721228059518,1.33873174,65095.0,65075.0,0.373634]
[1721228059519,0.307296,65084.0,65079.0,0.0027273]
[1721228059721,0.25438174,65095.0,65075.0,0.0663]
[1721228059722,0.153657,65080.0,65075.0,0.0663]
[1721228059920,0.307299,65084.0,65082.0,0.001]
[1721228060171,0.153649,65083.0,65082.0,0.001]
[1721228060499,0.99980353,65083.0,65082.0,0.001]
[1721228060679,1.30710253,65083.0,65082.0,0.001]
[1721228061259,1.30710253,65083.0,65065.0,0.0027273]
[1721228061260,0.307307,65082.0,65065.0,0.0027273]
[1721228061632,0.23155653,65083.0,65065.0,0.0027273]
[1721228061633,0.153688,65067.0,65065.0,0.01414273]
[1721228061843,0.153688,65067.0,65060.0,0.0027273]
[1721228062488,0.153691,65066.0,65059.0,0.0027273]
[1721228062920,0.1537,65062.0,65059.0,0.0027273]
[1721228063065,0.30737,65069.0,65059.0,0.0027273]
[1721228063275,0.153704,65060.0,65059.0,0.0027273]
[1721228063481,0.307375,65067.0,65052.0,0.0027273]
[1721228063680,0.153703,65061.0,65054.0,0.0027273]
[1721228064326,0.153701,65061.0,65054.0,0.0027273]
[1721228065790,0.154701,65061.0,65054.0,0.0097273]
[1721228066214,0.153701,65061.0,65054.0,0.0027273]
[1721228066419,0.002,65061.0,65055.0,0.153715]
[1721228066607,0.003,65061.0,65057.0,0.0027273]
[1721228066999,0.461125,65058.0,65057.0,0.0027273]
[1721228067202,0.153712,65057.0,65054.0,0.006]
[1721228067402,0.153712,65057.0,65055.0,0.01508]
[1721228067603,0.153713,65056.0,65055.0,0.01508]
[1721228068938,0.153711,65057.0,65055.0,0.01508]
[1721228069405,0.153713,65056.0,65055.0,0.01908]
[1721228069601,1.23037574,65056.0,65055.0,0.004]
[1721228069905,1.23037574,65056.0,65055.0,0.011]
[1721228069906,0.61552174,65056.0,65055.0,0.011]
[1721228070134,0.61552174,65056.0,65055.0,0.007]
[1721228070135,0.61652174,65056.0,65055.0,0.007]
[1721228070352,0.92394874,65056.0,65055.0,0.007]
[1721228070564,0.92394874,65056.0,65045.0,0.0027273]
[1721228070565,0.153735,65047.0,65045.0,0.0027273]
[1721228070778,0.153735,65047.0,65044.0,0.0767]
[1721228071030,0.15438174,65055.0,65040.0,0.065]
[1721228071242,0.15438174,65055.0,65038.0,0.0767]
[1721228071243,0.15375,65041.0,65038.0,0.0767]
[1721228071458,0.307473,65047.0,65033.0,0.00266911]
[1721228071459,0.461296,65034.0,65033.0,0.00266911]
[1721228071662,0.153769,65033.0,65030.0,0.0767]
[1721228071873,0.153787,65025.0,65024.0,0.085885]
[1721228072058,0.153787,65025.0,65024.0,0.01831318]
[1721228072059,0.461361,65025.0,65024.0,0.01831318]
[1721228072364,0.30762994,65030.0,65024.0,0.009185]
[1721228072566,0.153778,65029.0,65024.0,0.009185]
[1721228072851,7.894e-05,65030.0,65024.0,0.009185]
[1721228072852,0.15438174,65028.0,65024.0,0.009185]
[1721228073062,0.153787,65025.0,65024.0,0.009185]
[1721228073212,0.461361,65025.0,65024.0,0.009185]
[1721228073612,0.768935,65025.0,65024.0,0.011185]
[1721228073819,0.461361,65025.0,65024.0,0.011185]
[1721228074251,0.153782,65027.0,65024.0,0.012185]
[1721228074653,0.014,65028.0,65024.0,0.012185]
[1721228074848,0.014,65028.0,65025.0,0.01687063]
[1721228074849,0.16778,65028.0,65025.0,0.01687063]
[1721228075057,0.16778,65028.0,65024.0,0.012185]
[1721228075260,0.014,65028.0,65024.0,0.013185]
[1721228075480,0.014,65028.0,65024.0,0.012185]
[1721228075623,7.894e-05,65030.0,65025.0,0.0027273]
[1721228075827,0.008,65027.0,65025.0,0.0027273]
[1721228076049,0.008,65027.0,65026.0,0.04742893]
[1721228076297,7.894e-05,65030.0,65026.0,0.04742893]
[1721228076460,7.894e-05,65030.0,65027.0,0.0027273]
[1721228076657,7.894e-05,65030.0,65026.0,0.04742893]
[1721228076833,7.894e-05,65030.0,65027.0,0.00266905]
[1721228077042,0.009,65028.0,65027.0,0.0213074]
[1721228077244,0.461361,65025.0,65024.0,0.010185]
[1721228078294,0.768935,65025.0,65024.0,0.010185]
[1721228078497,0.461361,65025.0,65024.0,0.010185]
[1721228078939,0.768935,65025.0,65024.0,0.010185]
[1721228079140,1.23089074,65025.0,65024.0,0.010185]
[1721228079530,1.33089074,65025.0,65024.0,0.010185]
[1721228079738,1.33089074,65025.0,65024.0,0.009185]
[1721228080611,1.33589074,65025.0,65024.0,0.013185]
[1721228081208,1.02831674,65025.0,65024.0,0.013185]
[1721228081410,0.158787,65025.0,65024.0,0.013185]
[1721228081618,0.158787,65025.0,65024.0,0.078785]
[1721228081619,0.005,65025.0,65024.0,0.078785]
[1721228081820,0.005,65025.0,65024.0,0.0943335]
[1721228081994,0.005,65025.0,65024.0,0.5557005]
[1721228082399,0.005,65025.0,65024.0,1.1708565]
[1721228082629,0.005,65025.0,65024.0,0.8632785]
[1721228082827,0.005,65025.0,65024.0,1.1708565]
[1721228083002,0.005,65025.0,65024.0,0.5557005]
[1721228083403,0.00307894,65030.0,65027.0,0.153782]
[1721228083604,7.894e-05,65030.0,65028.0,0.08622645]
[1721228083804,7.894e-05,65030.0,65025.0,0.00266905]
[1721228083805,0.153784,65026.0,65025.0,0.00266905]
[1721228084053,0.61573474,65026.0,65025.0,0.00266905]
[1721228084408,0.153787,65025.0,65024.0,0.015185]
[1721228084620,0.30816874,65025.0,65024.0,0.015185]
[1721228084822,0.98621674,65025.0,65024.0,0.015185]
[1721228085022,1.39479074,65025.0,65024.0,0.015185]
[1721228085986,1.39379074,65025.0,65024.0,0.009185]
[1721228086486,1.42179074,65025.0,65024.0,0.011185]
[1721228086692,1.72936474,65025.0,65024.0,0.011185]
[1721228086923,1.71536474,65025.0,65024.0,0.010185]
[1721228087057,1.86971431,65025.0,65024.0,0.010185]
[1721228087258,1.72536474,65025.0,65024.0,0.011185]
[1721228088371,1.40379074,65025.0,65024.0,0.010185]
[1721228088577,1.39379074,65025.0,65024.0,0.009185]
[1721228088984,1.40779074,65025.0,65024.0,0.010185]
[1721228089414,0.114,65025.0,65024.0,0.010185]
[1721228089619,0.114,65025.0,65024.0,0.009185]
[1721228089620,0.153787,65025.0,65024.0,0.009185]
[1721228089832,0.461361,65025.0,65024.0,0.009185]
[1721228090045,1.23089074,65025.0,65024.0,0.009185]
[1721228090244,0.92331674,65025.0,65024.0,0.009185]
[1721228091181,0.178787,65025.0,65024.0,0.011185]
[1721228091590,0.025,65025.0,65024.0,0.011185]
[1721228091816,0.167787,65025.0,65024.0,0.010185]
[1721228092022,0.176787,65025.0,65024.0,0.011185]
[1721228092239,0.023,65025.0,65024.0,0.011185]
[1721228092474,0.176787,65025.0,65024.0,0.011185]
[1721228092732,0.484361,65025.0,65024.0,0.011185]
[1721228093187,0.023,65025.0,65024.0,0.011185]
[1721228094322,0.023,65025.0,65024.0,0.02825777]
[1721228094684,0.484361,65025.0,65024.0,0.011185]
[1721228094933,0.791935,65025.0,65024.0,0.011185]
[1721228097141,0.484361,65025.0,65024.0,0.011185]
[1721228097379,0.023,65025.0,65024.0,0.011185]
[1721228098658,0.014,65025.0,65024.0,0.010185]
[1721228098862,0.167787,65025.0,65024.0,0.010185]
[1721228099070,0.167787,65025.0,65024.0,0.009185]
[1721228099071,0.155787,65025.0,65024.0,0.009185]
[1721228099283,0.770935,65025.0,65024.0,0.009185]
[1721228099768,0.780935,65025.0,65024.0,0.010185]
[1721228100407,1.24289074,65025.0,65024.0,0.010185]
[1721228100645,1.40389074,65025.0,65024.0,0.010185]
[1721228102205,0.880935,65025.0,65024.0,0.010185]
[1721228102462,0.012,65025.0,65024.0,0.010185]
[1721228102682,0.012,65025.0,65024.0,0.156885]
[1721228102902,0.012,65025.0,65024.0,0.310674]
[1721228103138,0.012,65025.0,65024.0,0.68065295]
[1721228103357,0.307482,65045.0,65024.0,0.7815698]
[1721228103544,0.061,65054.0,65024.0,0.7815698]
[1721228103545,0.46304871,65044.0,65037.0,0.307516]
[1721228103870,0.307435,65055.0,65038.0,0.00307471]
[1721228104068,0.307386,65065.0,65048.0,0.153732]
[1721228104069,0.153712,65057.0,65048.0,0.153732]
[1721228104311,0.307386,65065.0,65049.0,0.0648]
[1721228104543,0.307409,65060.0,65049.0,0.0648]
[1721228104742,0.153717,65055.0,65049.0,0.0648]
[1721228104943,0.061,65067.0,65049.0,0.0648]
[1721228105123,0.061,65067.0,65053.0,0.153719]
[1721228105124,0.153702,65061.0,65053.0,0.153719]
[1721228105519,0.307399,65062.0,65051.0,0.390049]
[1721228105520,0.30737,65068.0,65055.0,0.307431]
[1721228105719,0.0808,65078.0,65055.0,0.0030738]
[1721228105720,0.307336,65076.0,65055.0,0.0030738]
[1721228105884,0.1465,65078.0,65056.0,0.0654]
[1721228105885,0.153678,65071.0,65056.0,0.0654]
[1721228106090,0.014,65060.0,65059.0,0.461119]
[1721228106336,0.014,65060.0,65059.0,0.52658945]
[1721228106546,0.014,65060.0,65059.0,1.37839719]
[1721228106984,0.307315,65080.0,65059.0,1.37839719]
[1721228106985,0.15366,65079.0,65069.0,0.153681]
[1721228107169,0.307315,65080.0,65069.0,0.153681]
[1721228107170,0.153662,65078.0,65069.0,0.153681]
[1721228107721,0.153662,65078.0,65065.0,0.307383]
[1721228107722,0.15367,65075.0,65065.0,0.15369]
[1721228107925,0.307324,65078.0,65066.0,0.03605937]
[1721228108131,0.307329,65077.0,65066.0,0.03605937]
[1721228108340,0.07717479,65075.0,65066.0,0.03605937]
[1721228108541,0.153676,65072.0,65064.0,0.153693]
[1721228108981,0.153676,65072.0,65063.0,0.153696]
[1721228109257,0.153704,65060.0,65059.0,0.0836]
[1721228109462,0.461112,65060.0,65059.0,0.001]
[1721228109666,0.76852,65060.0,65059.0,0.001]
[1721228110190,0.461112,65060.0,65059.0,0.001]
[1721228110660,1.24345194,65060.0,65059.0,0.001]
[1721228110865,1.55085994,65060.0,65059.0,0.001]
[1721228111077,1.47400974,65060.0,65059.0,0.001]
[1721228111312,0.626912,65060.0,65059.0,0.001]
[1721228111599,0.1383,65067.0,65059.0,0.001]
[1721228111836,0.461112,65060.0,65059.0,0.001]
[1721228112069,0.153726,65051.0,65046.0,0.00266905]
[1721228112279,0.07717479,65059.0,65047.0,0.02996121]
[1721228112493,0.15438174,65058.0,65043.0,0.00266905]
[1721228112688,0.15438174,65058.0,65046.0,0.00266905]
[1721228112689,0.153721,65053.0,65046.0,0.00266905]
[1721228112890,0.153716,65055.0,65051.0,0.00266905]
[1721228113099,0.07717479,65065.0,65042.0,0.0814]
[1721228113100,0.07717479,65064.0,65050.0,0.153727]
[1721228113300,0.56304871,65066.0,65059.0,0.001]
[1721228113301,0.006,65060.0,65059.0,0.001]
[1721228113503,0.006,65060.0,65059.0,0.003]
[1721228113913,0.006,65060.0,65059.0,0.300206]
[1721228114230,0.006,65060.0,65059.0,0.607619]
[1721228114440,0.006,65060.0,65059.0,1.37682674]
[1721228115254,0.006,65060.0,65059.0,1.37582674]
[1721228115476,0.006,65060.0,65059.0,1.37482674]
[1721228115643,0.006,65060.0,65059.0,1.37582674]
[1721228116427,0.006,65060.0,65059.0,0.606619]
[1721228116644,0.006,65060.0,65059.0,0.001]
[1721228116645,0.159704,65060.0,65059.0,0.001]
[1721228117168,0.006,65060.0,65059.0,0.001]
[1721228117513,0.307382,65066.0,65060.0,0.00266905]
[1721228117799,0.153694,65065.0,65060.0,0.00266905]
[1721228118003,0.153694,65065.0,65059.0,0.001]
[1721228118004,0.153704,65060.0,65059.0,0.001]
[1721228118203,0.67589374,65060.0,65059.0,0.001]
[1721228118612,0.98330174,65060.0,65059.0,0.001]
[1721228118818,0.307426,65057.0,65048.0,0.153731]
[1721228119041,0.1,65064.0,65050.0,0.307455]
[1721228119187,0.153717,65055.0,65051.0,0.00266905]
[1721228119543,0.153717,65055.0,65050.0,0.00266905]
[1721228119544,0.153718,65055.0,65050.0,0.00266905]
[1721228119770,0.307434,65055.0,65050.0,0.00266905]
[1721228119973,0.307419,65058.0,65048.0,0.00266905]
[1721228120222,0.153717,65055.0,65049.0,0.06071781]
[1721228120461,0.53895053,65063.0,65050.0,0.00266905]
[1721228120462,0.153723,65052.0,65050.0,0.00266905]
[1721228120699,0.461176,65051.0,65050.0,0.00266905]
[1721228120903,0.15374,65045.0,65038.0,0.00266905]
[1721228121111,0.153753,65039.0,65038.0,0.00266905]
[1721228121316,0.153762,65036.0,65031.0,0.00266905]
[1721228121522,0.307507,65039.0,65031.0,0.00266905]
[1721228121523,0.153756,65038.0,65032.0,0.01470691]
[1721228121728,0.07717479,65046.0,65023.0,0.00266905]
[1721228121729,0.15438174,65037.0,65023.0,0.00266905]
[1721228121903,0.07717479,65046.0,65025.0,0.00574416]
[1721228121904,0.0772,65046.0,65025.0,0.00574416]
[1721228122177,0.153757,65038.0,65030.0,0.153774]
[1721228122399,0.407446,65052.0,65031.0,0.29955079]
[1721228122400,0.153732,65048.0,65031.0,0.29955079]
[1721228122637,0.1,65052.0,65044.0,0.15374]
[1721228122859,0.153723,65052.0,65045.0,0.01804305]
[1721228123063,0.153723,65052.0,65045.0,0.015374]
[1721228123273,0.153725,65051.0,65046.0,0.00266905]
[1721228123493,0.001,65058.0,65046.0,0.00266905]
[1721228123494,0.307445,65053.0,65046.0,0.00266905]
[1721228123701,0.001,65058.0,65037.0,0.307515]
[1721228123702,0.153729,65050.0,65040.0,0.31017005]
[1721228123905,0.153729,65050.0,65041.0,0.2155155]
[1721228124109,0.307442,65053.0,65041.0,0.2155155]
[1721228124110,0.153724,65052.0,65042.0,0.00266905]
[1721228124319,0.307459,65050.0,65042.0,0.00266905]
[1721228124524,0.307448,65052.0,65042.0,0.00266905]
[1721228124761,0.153728,65050.0,65042.0,0.15641505]
[1721228124974,0.153728,65050.0,65043.0,0.05256866]
[1721228125168,0.153728,65050.0,65044.0,0.00266905]
[1721228125384,0.153727,65051.0,65044.0,0.00266905]
[1721228125587,0.153731,65049.0,65044.0,0.00266905]
[1721228125791,0.307448,65052.0,65044.0,0.00266905]
[1721228125792,0.153724,65052.0,65044.0,0.00266905]
[1721228126000,0.175,65060.0,65045.0,0.02441966]
[1721228126230,0.175,65060.0,65046.0,0.00266905]
[1721228126231,0.153737,65047.0,65046.0,0.00266905]
[1721228126472,0.15374,65045.0,65039.0,0.00266905]
[1721228126687,0.014,65046.0,65038.0,0.307511]
[1721228126887,0.014,65046.0,65040.0,0.153751]
[1721228127530,0.153737,65046.0,65045.0,0.001]
[1721228127745,0.307454,65051.0,65045.0,0.001]
[1721228127948,0.153733,65048.0,65045.0,0.001]
[1721228128155,0.153737,65046.0,65045.0,0.01574171]
[1721228128357,0.153749,65041.0,65040.0,0.00266905]
[1721228128566,0.153784,65026.0,65025.0,0.14306905]
[1721228128776,0.25438174,65040.0,65025.0,0.14347547]
[1721228128992,0.1,65040.0,65026.0,0.00266905]
[1721228129192,0.307522,65036.0,65027.0,0.01522541]
[1721228129399,0.307448,65052.0,65028.0,0.16012585]
[1721228129572,0.0666,65055.0,65032.0,0.307539]
[1721228129573,0.153743,65044.0,65032.0,0.307539]
[1721228129833,0.07717479,65049.0,65033.0,0.00266905]
[1721228130061,0.153755,65039.0,65031.0,0.153771]
[1721228130221,0.307481,65045.0,65032.0,0.09678437]
[1721228130377,0.153745,65043.0,65035.0,0.153763]
[1721228130580,0.15375,65041.0,65036.0,0.00266905]
[1721228130779,0.15375,65041.0,65032.0,0.09411532]